[Event "German Bundesliga 2021-22"]
[Site "Germany"]
[Date "2022.04.30"]
[Round "5.11"]
[White "Hansen, Sune Berg"]
[Black "Korobov, Anton"]
[Result "1/2-1/2"]
[ECO "A34"]
[WhiteElo "2527"]
[BlackElo "2695"]
[Annotator "TA"]
[PlyCount "68"]
[EventDate "2022.03.05"]
[EventType "team-tourn"]
[EventCountry "GER"]
[SourceTitle "playchess.com"]
[Source "ChessBase"]
[SourceQuality "1"]
[TimeControl "40/5400+30:1800+30"]

{[%evp 9,68,18,34,-14,-4,-29,-16,-9,-16,-24,0,0,0,-2,0,-2,-13,-22,-17,-16,0,-9,0,0,0,0,0,0,4,20,9,3,16,18,16,8,0,0,9,0,14,0,0,0,0,0,0,0,0,0,0,0,0,-14,-14,-14,-14,-14,-15,-15,-13]} 1. Nf3 {[%emt 0:00:00]} c5 {[%emt 0:00:00]} 2. c4 {[%emt 0:00:00]} Nf6 {[%emt 0:00:00]} 3. Nc3 {[%emt 0:00:00]} d5 {[%emt 0:00:00]} 4. cxd5 {[%emt 0:00:00]} Nxd5 {[%emt 0:00:00]} 5. e4 {[%emt 0:02:33]} Nb4 {[%emt 0:00:00]} 6. d3 {[%emt 0:00:26] A34: Symmetrical English: 2 Nc3, lines with ...d5.} (6. Bb5+ $14 N8c6 7. a3 (7. d4 cxd4 8. a3 dxc3 $14) 7... Nd3+ 8. Ke2 Nf4+ 9. Kf1) 6... N4c6 {[%emt 0:00:00] [#]} 7. h3 $146 {[%emt 0:09:32]} ({Predecessor:} 7. Bf4 f6 8. e5 Nd4 9. Be2 Nbc6 10. O-O f5 11. Rc1 e6 12. Nxd4 Nxd4 13. Be3 Bd7 {½-½ (40) Stearman,J (2435)-Sheng,J (2453) Charlotte 2021}) 7... Nd4 {[%emt 0:06:35]} 8. Nxd4 {[%emt 0:01:38]} cxd4 {[%emt 0:03:39]} 9. Nb1 {[%emt 0:00:59][%cal Bc3b1,Bb1d2,Bd2f3][%mdl 32]} Nc6 {[%emt 0:02:05]} 10. Be2 {[%emt 0:01:12] The position is equal.} e5 {[%emt 0:05:27]} 11. Nd2 {[%emt 0:03:27]} Be7 {[%emt 0:01:25]} 12. O-O {[%emt 0:04:28]} O-O {[%emt 0:02:30]} 13. a3 {[%emt 0:04:44]} Bd7 {[%emt 0:10:37]} 14. Bg4 {[%emt 0:01:23]} Be8 {[%emt 0:11:10]} 15. g3 {[%emt 0:09:57]} b5 {[%emt 0:06:34]} 16. Nf3 {[%emt 0:04:35]} Qd6 {[%emt 0:04:52][%cal Oh7h5]} 17. h4 {[%emt 0:02:42]} a5 {[%emt 0:06:40]} 18. Bd2 {[%emt 0:02:15]} a4 {[%emt 0:00:58]} 19. b4 {[%emt 0:06:09]} Bd7 {[%emt 0:03:05]} 20. Nh2 {[%emt 0:02:12]} Rac8 {[%emt 0:08:21]} 21. Rc1 {[%emt 0:01:36]} Na7 {[%emt 0:04:09]} 22. Qe2 {[%emt 0:08:16]} Rxc1 {[%emt 0:01:21]} 23. Rxc1 {[%emt 0:00:07]} Rc8 {[%emt 0:00:05]} 24. Rxc8+ {[%emt 0:01:35]} Nxc8 {[%emt 0:02:16]} 25. Bxd7 {[%emt 0:04:45]} Qxd7 {[%emt 0:00:03]} 26. Qg4 {[%emt 0:00:04]} Qxg4 {[%emt 0:00:54]} 27. Nxg4 $11 {[%emt 0:00:05][%mdl 4096] Endgame KBN-KBN} f6 {[%emt 0:00:06]} 28. h5 {[%emt 0:04:23]} Na7 {[%emt 0:03:56] [#] ...Nc6 is the strong threat.} 29. Nh2 $1 {[%emt 0:01:11]} Nc6 {[%emt 0:01:05][%cal Oc6b4] aiming for ...Nxb4!} 30. Nf3 {[%emt 0:00:26]} Kf7 {[%emt 0:00:22]} 31. g4 {[%emt 0:02:56]} g6 {[%emt 0:01:34]} 32. hxg6+ {[%emt 0:00:06]} hxg6 {[%emt 0:00:06]} 33. Kf1 {[%emt 0:03:02]} Ke6 {[%emt 0:02:32]} 34. Ke2 {[%emt 0:01:02]} g5 {[%emt 0:01:41] A rather calm draw.  Weighted Error Value: White=0.04 (flawless) /Black=0.03 (flawless)} 1/2-1/2

[Event "German Bundesliga 2021-22"]
[Site "Germany"]
[Date "2022.04.30"]
[Round "5.11"]
[White "Richter, Michael"]
[Black "Kamsky, Gata"]
[Result "0-1"]
[ECO "B07"]
[WhiteElo "2496"]
[BlackElo "2657"]
[Annotator "TA"]
[PlyCount "132"]
[EventDate "2022.03.05"]
[EventType "team-tourn"]
[EventCountry "GER"]
[SourceTitle "playchess.com"]
[Source "ChessBase"]
[SourceQuality "1"]
[TimeControl "40/5400+30:1800+30"]

{[%evp 14,132,21,12,31,9,12,12,23,3,31,28,28,30,32,26,31,6,21,0,0,0,0,0,9,0,0,0,-3,0,0,-7,0,0,0,0,0,0,0,0,0,-9,0,0,0,-12,-6,-56,-50,-47,-45,-46,-14,-83,-87,-83,-83,-83,-83,-83,-94,-98,-87,-87,-87,-94,-68,-123,-124,-130,-123,-139,-145,-141,-140,-138,-123,-141,-128,-127,-95,-154,-147,-147,-147,-166,-158,-158,-158,-180,-174,-179,-202,-263,-246,-193,0,0,0,0,0,0,0,-152,-8,-8,-14,-14,-8,-1160,-1146,-1082,-1071,-1082,-1004,-843,-828,-821,-672,-520,-345]} 1. d4 {[%emt 0:00:00]} Nf6 {[%emt 0:00:00]} 2. Nf3 {[%emt 0:00:00]} g6 {[%emt 0:00:00]} 3. Nbd2 {[%emt 0:00:00]} Bg7 {[%emt 0:01:00]} 4. e4 {[%emt 0:00:00]} d6 {[%emt 0:00:30]} 5. Bd3 {[%emt 0:00:00]} O-O {[%emt 0:00:30]} 6. O-O {[%emt 0:00:00]} Nc6 {[%emt 0:00:30]} 7. c3 {[%emt 0:00:00]} e5 {[%emt 0:00:30]} 8. Re1 {[%emt 0:00:00]} Re8 {[%emt 0:01:30] B07: Pirc Defence: Miscellaneous Systems.} 9. dxe5 {[%emt 0:00:00]} Nxe5 {[%emt 0:06:30]} 10. Nxe5 {[%emt 0:00:30]} dxe5 {[%emt 0:04:30] The position is equal.} 11. Nc4 {[%emt 0:00:30] [#]} h6 $146 {[%emt 0:02:30]} ({Predecessor:} 11... b6 12. a4 Bb7 13. Bg5 Qe7 14. Qc2 Rad8 15. Ne3 Rd6 16. f3 Red8 17. Bf1 c6 {1-0 (33) Kuzubov,Y (2653)-Kosakowski,J (2385) Karlsruhe 2019}) 12. a4 {[%emt 0:04:30]} a5 {[%emt 0:01:30]} 13. Qc2 {[%emt 0:12:30]} Qe7 {[%emt 0:14:30]} 14. b3 {[%emt 0:07:30]} Rd8 {[%emt 0:07:30]} 15. Ba3 {[%emt 0:03:30]} Qe8 {[%emt 0:00:30]} 16. Ne3 {[%emt 0:03:30]} Bf8 {[%emt 0:03:30]} 17. Bxf8 {[%emt 0:16:30]} Qxf8 {[%emt 0:00:30]} 18. Bc4 {[%emt 0:01:30]} c6 {[%emt 0:06:30]} 19. Rad1 {[%emt 0:02:30]} Kg7 {[%emt 0:04:30]} 20. Rxd8 {[%emt 0:03:30]} Qxd8 {[%emt 0:00:30]} 21. Rd1 {[%emt 0:02:30]} Qe7 {[%emt 0:00:00]} 22. Qd3 {[%emt 0:12:30]} Bd7 {[%emt 0:02:00]} 23. Qd6 {[%emt 0:13:47]} Qxd6 {[%emt 0:04:30]} 24. Rxd6 {[%emt 0:00:09]} Be8 {[%emt 0:03:30]} 25. f3 {[%emt 0:02:53]} Nd7 {[%emt 0:00:00]} 26. Bd3 {[%emt 0:01:45]} Kf8 {[%emt 0:01:00] aiming for ...Ke7.} 27. Bc2 {[%emt 0:00:23]} Ke7 {[%emt 0:00:00]} 28. Rd1 {[%emt 0:00:25]} f6 {[%emt 0:02:00]} 29. Kf2 {[%emt 0:00:33]} Nc5 {[%emt 0:01:30]} 30. Nc4 {[%emt 0:05:26]} (30. h4 $11) 30... Bf7 $15 {[%emt 0:00:30]} 31. Nd2 {[%emt 0:05:34]} Rd8 {[%emt 0:06:30]} 32. Ke3 {[%emt 0:00:35]} Be6 {[%emt 0:00:30]} 33. b4 {[%emt 0:02:38]} (33. Rb1 $11) 33... axb4 $17 {[%emt 0:07:30] Black is more active.} 34. cxb4 {[%emt 0:00:07]} Na6 {[%emt 0:00:00]} 35. Rb1 {[%emt 0:00:54]} Rd4 $1 {[%emt 0:00:00]} 36. b5 {[%emt 0:00:23]} Nb4 {[%emt 0:00:00]} 37. Rb2 {[%emt 0:01:20]} Nxc2+ {[%emt 0:04:50]} 38. Rxc2 {[%emt 0:00:05][%mdl 4096] Endgame KRB-KRN} Kd6 {[%emt 0:00:07]} (38... Rxa4 $6 39. bxc6 Ra3+ 40. Kf2 bxc6 41. Rxc6 $11) 39. bxc6 {[%emt 0:00:49]} bxc6 {[%emt 0:00:05]} 40. a5 {[%emt 0:00:22]} ({Better is} 40. f4 $1 $15) 40... Ra4 {[%emt 0:00:00]} 41. Rb2 {[%emt 0:00:00]} Kc7 {[%emt 0:00:00] Against Rb7+} 42. Nb1 {[%emt 0:00:00]} Rxa5 {[%emt 0:00:00]} 43. Nc3 {[%emt 0:00:00] Against Rb5} Ra3 {[%emt 0:00:00]} 44. Kd3 {[%emt 0:00:00]} Ra8 {[%emt 0:00:00]} 45. Rb4 {[%emt 0:01:22]} c5 {[%emt 0:05:58]} 46. Rb1 {[%emt 0:00:30]} Kc6 {[%emt 0:00:30]} 47. Kd2 {[%emt 0:00:30]} (47. g4 $142) 47... Bc4 {[%emt 0:14:30]} 48. Kc2 {[%emt 0:00:00]} h5 {[%emt 0:01:30][%cal Bh6h5,Bh5h4,Bh4h3][%mdl 32]} 49. Rg1 {[%emt 0:00:00]} h4 {[%emt 0:07:30]} 50. g3 {[%emt 0:00:00]} h3 {[%emt 0:00:30]} 51. g4 {[%emt 0:00:00]} g5 {[%emt 0:18:43]} 52. Rb1 {[%emt 0:00:00]} Rd8 {[%emt 0:00:59]} 53. Rd1 {[%emt 0:00:00] Prevents Bd3+.} Rd4 {[%emt 0:02:52]} 54. Ra1 {[%emt 0:19:04]} Rd3 $2 {[%emt 0:00:29]} (54... Bd3+ $19 55. Kc1 Rb4) 55. Ra4 $11 {[%emt 0:00:00]} Rxf3 {[%emt 0:00:47] Strongly threatening ...Rf2+.} 56. Rxc4 {[%emt 0:00:07] KRN-KR} Rf2+ {[%emt 0:01:19]} 57. Kd3 {[%emt 0:00:06]} Rxh2 {[%emt 0:00:41]} 58. Na4 $2 {[%emt 0:06:09]} (58. Ra4 $11) 58... Rh1 {[%emt 0:00:33]} (58... Rg2 $1 $17 {And now ...h2 would win.} 59. Rxc5+ Kd6) 59. Rxc5+ {[%emt 0:00:15]} Kd6 {[%emt 0:00:33]} 60. Rc2 {[%emt 0:00:18]} h2 {[%emt 0:00:33] ( -> ...Rd1+)} 61. Kc3 $2 {[%emt 0:00:33][%mdl 8192] [#] This move loses the game for White.} (61. Kc4 $11) 61... Ra1 $1 $19 {[%emt 0:00:27] Black is clearly winning.} 62. Rd2+ {[%emt 0:00:07]} Ke7 {[%emt 0:00:17]} 63. Rxh2 {[%emt 0:00:03]} Rxa4 {[%emt 0:00:46]} 64. Rh7+ {[%emt 0:00:18]} Ke6 {[%emt 0:00:13]} 65. Kd3 {[%emt 0:00:36] [#]} Ra3+ $1 {[%emt 0:00:24]} 66. Ke2 {[%emt 0:00:00]} Rg3 {[%emt 0:00:49] Weighted Error Value: White=0.17 (very precise) /Black=0.13 (very precise)} 0-1

[Event "German Bundesliga 2021-22"]
[Site "Germany"]
[Date "2022.04.30"]
[Round "5.11"]
[White "Vogel, Roven"]
[Black "Eljanov, Pavel"]
[Result "1/2-1/2"]
[ECO "E04"]
[WhiteElo "2452"]
[BlackElo "2681"]
[Annotator "TA"]
[PlyCount "229"]
[EventDate "2022.03.05"]
[EventType "team-tourn"]
[EventCountry "GER"]
[SourceTitle "playchess.com"]
[Source "ChessBase"]
[SourceQuality "1"]
[TimeControl "40/5400+30:1800+30"]

{[%evp 60,229,116,38,24,36,38,42,96,85,74,81,66,65,74,68,83,81,183,198,201,191,193,184,193,152,213,185,219,219,179,98,98,98,98,98,98,98,98,98,98,98,77,50,55,23,42,43,50,42,42,33,33,33,33,8,8,8,8,8,8,8,8,8,8,8,8,8,8,0,8,0,0,0,8,8,29,8,59,8,59,59,59,8,8,8,8,8,8,0,8,0,8,0,0,0,8,8,8,0,0,0,0,0,0,0,0,0,0,0,8,0,0,0,0,0,0,0,0,0,0,0,0,0,0,0,0,0,0,0,8,0,0,0,0,0,0,0,0,0,0,0,0,0,0,0,0,0,8,0,8,0,0,0,0,0,0,0,0,0,0,0,0,0,0,0,0,0,0,0,0,0]} 1. d4 {[%emt 0:00:00]} Nf6 {[%emt 0:00:00]} 2. c4 {[%emt 0:00:00]} e6 {[%emt 0:00:00]} 3. Nf3 {[%emt 0:00:00]} d5 {[%emt 0:00:00]} 4. g3 {[%emt 0:00:00]} dxc4 {[%emt 0:00:00]} 5. Bg2 {[%emt 0:00:00]} c6 {[%emt 0:00:00]} 6. Ne5 {[%emt 0:00:00]} Bb4+ {[%emt 0:00:00]} 7. Nc3 {[%emt 0:02:10]} Nd5 {[%emt 0:00:00]} 8. Bd2 {[%emt 0:01:13]} b5 {[%emt 0:00:00]} 9. O-O {[%emt 0:04:05]} O-O {[%emt 0:00:11]} 10. a4 {[%emt 0:13:29]} a5 {[%emt 0:03:19]} 11. Qc2 {[%emt 0:07:45]} f6 {[%emt 0:24:42]} 12. Nf3 {[%emt 0:01:45]} Bxc3 {[%emt 0:00:10]} 13. bxc3 {[%emt 0:03:55]} Bd7 {[%emt 0:00:28]} 14. Nh4 {[%emt 0:06:09]} Ra6 {[%emt 0:09:55]} 15. Be4 {[%emt 0:02:03]} f5 {[%emt 0:01:50]} 16. Bg2 {[%emt 0:00:36]} Nb6 {[%emt 0:02:36]} 17. Nf3 {[%emt 0:16:31]} Nxa4 {[%emt 0:00:24]} 18. Bg5 {[%emt 0:00:09]} Qe8 {[%emt 0:06:15]} 19. Rxa4 {[%emt 0:00:46]} bxa4 {[%emt 0:00:03]} 20. Ne5 {[%emt 0:00:27]} c5 {[%emt 0:03:50]} 21. dxc5 {[%emt 0:00:31]} Bc6 {[%emt 0:04:11]} 22. Nxc6 {[%emt 0:01:22]} Rxc6 {[%emt 0:03:05]} 23. Bxc6 {[%emt 0:00:51]} Qxc6 {[%emt 0:00:06]} 24. Ra1 {[%emt 0:02:27]} Qxc5 {[%emt 0:11:09]} 25. Qxa4 {[%emt 0:07:04]} Nc6 {[%emt 0:00:34]} 26. Rb1 {[%emt 0:01:57]} Qd5 {[%emt 0:03:12]} 27. Rb5 {[%emt 0:00:44]} Qe4 {[%emt 0:13:32]} 28. Qd1 {[%emt 0:01:28]} f4 {[%emt 0:04:18]} 29. f3 {[%emt 0:07:47]} Qe3+ {[%emt 0:02:32]} 30. Kg2 {[%emt 0:01:56]} e5 {[%emt 0:05:10]} 31. Rb7 {[%emt 0:01:17]} (31. Qd5+ Kh8 32. Rb2 (32. Qxc6 Qxe2+ 33. Kh3 fxg3 $11) 32... h6 $1) ({White should try} 31. Kh3 $1 $16 h6 32. Bxh6 $1 (32. Qd5+ Kh7 $11)) 31... e4 $1 $14 {[%emt 0:02:29]} 32. Qd7 {[%emt 0:14:44]} exf3+ $1 {[%emt 0:00:05]} 33. exf3 {[%emt 0:00:05]} Qe2+ {[%emt 0:01:20]} (33... Qe5 $14) 34. Kh3 $16 {[%emt 0:01:01]} Qe5 {[%emt 0:00:05]} 35. gxf4 {[%emt 0:02:15]} Qf5+ {[%emt 0:00:59]} 36. Qxf5 {[%emt 0:00:06]} Rxf5 {[%emt 0:00:02]} 37. Rc7 {[%emt 0:00:31]} h6 {[%emt 0:01:40] [#]} 38. Bh4 $1 {[%emt 0:01:20]} ({Don't play} 38. Rxc6 hxg5 39. Kg3 Kf7 $14) 38... Rxf4 {[%emt 0:00:41]} (38... Nb8 $16) 39. Rxc6 $18 {[%emt 0:00:53]} Rxf3+ {[%emt 0:00:04]} 40. Kg4 {[%emt 0:00:19]} Rxc3 {[%emt 0:00:05]} 41. Bg3 {[%emt 0:00:00]} ({Resist} 41. Be1 $6 Rc2 $16) 41... a4 {[%emt 0:00:00]} 42. Kf5 {[%emt 0:00:00]} Kh7 {[%emt 0:00:00]} (42... Rc2 $16 43. Ra6 Ra2) 43. Rc7 {[%emt 0:00:00]} Rf3+ {[%emt 0:07:08]} 44. Ke4 {[%emt 0:00:00]} Rf6 {[%emt 0:00:12]} 45. Rxc4 {[%emt 0:00:00]} (45. Be5 $18 Rg6 46. Ra7 (46. Rxc4 Rg4+ 47. Kd5 Rxc4 $11)) 45... Ra6 $16 {[%emt 0:06:18]} 46. Rc7 {[%emt 0:00:00]} a3 {[%emt 0:02:22]} 47. Be5 {[%emt 0:00:00]} Kg6 {[%emt 0:01:17]} 48. Rxg7+ {[%emt 0:00:00]} Kh5 {[%emt 0:00:04]} 49. Kf3 {[%emt 0:00:10]} a2 {[%emt 0:02:08] [#]} 50. Ba1 $1 {[%emt 0:03:49]} Kh4 {[%emt 0:04:37]} 51. Kg2 {[%emt 0:00:49]} Rd6 {[%emt 0:03:22]} 52. Rf7 {[%emt 0:02:04]} Rg6+ {[%emt 0:00:10]} 53. Kf2 {[%emt 0:02:15]} Rd6 {[%emt 0:05:42]} 54. Rf4+ {[%emt 0:05:47]} Kh3 {[%emt 0:02:09]} 55. Rf3+ {[%emt 0:00:31]} Kh4 {[%emt 0:00:09]} 56. Ra3 {[%emt 0:11:15]} Rd2+ {[%emt 0:00:16]} 57. Kf3 {[%emt 0:00:10]} Rxh2 {[%emt 0:00:32]} 58. Ra5 {[%emt 0:00:40]} Rh3+ {[%emt 0:00:07]} 59. Kf4 {[%emt 0:00:24]} Rb3 {[%emt 0:01:36]} (59... Rg3 {keeps more tension.} 60. Be5 Rg1 61. Bf6+ Kh3) 60. Rxa2 {[%emt 0:00:48]} Rb4+ {[%emt 0:00:04]} 61. Kf5 {[%emt 0:00:13]} Kg3 {[%emt 0:02:56]} 62. Be5+ {[%emt 0:00:08]} Kf3 {[%emt 0:00:05]} 63. Ra3+ {[%emt 0:00:12]} Ke2 {[%emt 0:00:22]} 64. Rh3 {[%emt 0:00:13]} Rc4 {[%emt 0:00:45]} 65. Ke6 {[%emt 0:01:30]} h5 {[%emt 0:00:23]} 66. Kd5 {[%emt 0:00:08]} Rc8 {[%emt 0:00:52]} 67. Ke4 {[%emt 0:00:31]} Re8 {[%emt 0:00:30]} 68. Rxh5 {[%emt 0:00:45]} Re7 {[%emt 0:00:17]} (68... Kf2 $11) 69. Rh1 {[%emt 0:00:26]} (69. Rh2+ $1 $14 Kd1 70. Ra2) 69... Re8 {[%emt 0:00:15]} (69... Kf2 $11) 70. Rh2+ $1 $14 {[%emt 0:02:03]} Ke1 {[%emt 0:00:37]} 71. Ra2 {[%emt 0:00:08]} ({Better is} 71. Kf4 $1 $14) 71... Re7 $11 {[%emt 0:00:24]} 72. Kd4 {[%emt 0:00:20]} Kf1 {[%emt 0:00:10]} 73. Bf4 {[%emt 0:00:14]} Re2 {[%emt 0:00:15]} 74. Ra8 {[%emt 0:00:25]} Re7 {[%emt 0:00:18]} 75. Bg5 {[%emt 0:00:19]} Re6 {[%emt 0:00:39]} 76. Rg8 {[%emt 0:00:28]} Ke2 {[%emt 0:00:11]} 77. Bf4 {[%emt 0:00:07]} Re7 {[%emt 0:00:48]} 78. Be5 {[%emt 0:00:46]} Kf2 {[%emt 0:00:22]} 79. Bg3+ {[%emt 0:01:08]} Kf3 {[%emt 0:00:31]} 80. Bd6 {[%emt 0:00:31]} Re4+ {[%emt 0:00:10]} 81. Kd5 {[%emt 0:00:08]} Re1 {[%emt 0:00:19]} 82. Rg3+ {[%emt 0:00:07]} Kf2 {[%emt 0:00:13]} 83. Rg6 {[%emt 0:00:39]} Re8 {[%emt 0:00:17]} 84. Bc5+ {[%emt 0:00:10]} Ke2 {[%emt 0:00:13]} 85. Rg2+ {[%emt 0:00:19]} Kd3 {[%emt 0:00:06]} 86. Bb6 {[%emt 0:00:15]} Re7 {[%emt 0:00:28]} 87. Rg3+ {[%emt 0:00:31]} Ke2 {[%emt 0:00:15]} 88. Ra3 {[%emt 0:00:23]} Rd7+ {[%emt 0:00:12]} 89. Kc4 {[%emt 0:00:07]} Re7 {[%emt 0:00:29]} 90. Ra2+ {[%emt 0:00:13]} Kf3 {[%emt 0:00:09]} 91. Kd3 {[%emt 0:00:07]} Kg4 {[%emt 0:00:15]} 92. Ra5 {[%emt 0:00:41]} Rf7 {[%emt 0:00:34]} 93. Rd5 {[%emt 0:04:06]} Rf3+ {[%emt 0:00:30]} 94. Be3 {[%emt 0:00:07]} Rf5 {[%emt 0:00:06]} 95. Rd7 {[%emt 0:00:14]} Kf3 {[%emt 0:00:55]} 96. Rg7 {[%emt 0:00:09]} Rd5+ {[%emt 0:00:35]} 97. Bd4 {[%emt 0:00:07]} Rf5 {[%emt 0:00:55]} 98. Re7 {[%emt 0:00:33]} Kg4 {[%emt 0:00:32]} 99. Re1 {[%emt 0:00:29]} Ra5 {[%emt 0:00:32]} 100. Ke4 {[%emt 0:00:19]} Ra4 {[%emt 0:00:24]} 101. Rg1+ {[%emt 0:00:07]} Kh4 {[%emt 0:00:08]} 102. Ke5 {[%emt 0:01:03]} Kh3 {[%emt 0:00:09]} 103. Rg8 {[%emt 0:00:20]} Rb4 {[%emt 0:00:21]} 104. Be3 {[%emt 0:00:11]} Rg4 {[%emt 0:00:14]} 105. Ra8 {[%emt 0:00:27]} Rb4 {[%emt 0:00:18]} 106. Ra2 {[%emt 0:00:37]} Kg3 {[%emt 0:00:26]} 107. Bf2+ {[%emt 0:00:26]} Kf3 {[%emt 0:00:11]} 108. Bc5 {[%emt 0:00:10]} Re4+ {[%emt 0:00:06]} 109. Kd5 {[%emt 0:00:06]} Re8 {[%emt 0:00:16]} 110. Rf2+ {[%emt 0:00:23]} Kg4 {[%emt 0:00:07]} 111. Bd4 {[%emt 0:00:06]} Kg5 {[%emt 0:00:29]} 112. Rg2+ {[%emt 0:00:08]} Kf5 {[%emt 0:00:12]} 113. Rf2+ {[%emt 0:00:04]} Kg5 {[%emt 0:00:04]} 114. Rg2+ {[%emt 0:00:03]} Kf5 {[%emt 0:00:05]} 115. Rf2+ {[%emt 0:00:04]} 1/2-1/2

[Event "German Bundesliga 2021-22"]
[Site "Germany"]
[Date "2022.04.30"]
[Round "5.12"]
[White "Amin, Bassem"]
[Black "Ernst, Sipke"]
[Result "1-0"]
[ECO "A06"]
[WhiteElo "2682"]
[BlackElo "2532"]
[Annotator "TA"]
[PlyCount "101"]
[EventDate "2022.03.05"]
[EventType "team-tourn"]
[EventCountry "GER"]
[SourceTitle "playchess.com"]
[Source "ChessBase"]
[SourceQuality "1"]
[TimeControl "40/5400+30:1800+30"]

{[%evp 15,101,19,21,31,23,14,20,1,8,0,0,-80,-85,-82,-86,-43,0,-17,0,0,0,0,0,0,0,0,12,0,4,1,22,12,19,6,20,0,33,30,52,59,36,12,70,61,52,26,33,0,32,28,77,75,168,0,0,-35,-29,-162,171,60,195,189,195,196,262,265,256,256,261,254,244,165,303,157,157,171,266,266,254,257,602,609,600,515,612,593,532,522]} 1. Nf3 {[%emt 0:00:00]} d5 {[%emt 0:00:00]} 2. g3 {[%emt 0:00:00]} g6 {[%emt 0:00:00]} 3. Bg2 {[%emt 0:00:00]} Bg7 {[%emt 0:00:00]} 4. d4 {[%emt 0:01:08]} c6 {[%emt 0:00:00]} 5. O-O {[%emt 0:00:40]} Nf6 {[%emt 0:00:00]} 6. b3 {[%emt 0:05:57]} O-O {[%emt 0:00:00]} 7. Bb2 {[%emt 0:01:06]} Ne4 {[%emt 0:01:24]} 8. Nbd2 {[%emt 0:07:16]} c5 {[%emt 0:13:29]} 9. e3 {[%emt 0:13:56] A49: 1 d4 Nf6 2 Nf3 g6 3 g3: Anti-King's Indian systems.} Bg4 {[%emt 0:09:31] [#]} 10. c4 $146 {[%emt 0:07:40]} ({Predecessor:} 10. h3 Nxd2 11. Qxd2 Bxf3 12. Bxf3 Nc6 13. Rad1 cxd4 14. exd4 e6 15. Bg2 Rc8 16. a3 {0-1 (24) Caetano,R (1981)-Cordioli,J (1821) Penha 2017}) 10... cxd4 {[%emt 0:02:40]} 11. exd4 {[%emt 0:07:20] The position is equal.} e6 {[%emt 0:14:46]} 12. Re1 {[%emt 0:04:47]} f5 {[%emt 0:15:46]} 13. Nf1 {[%emt 0:23:02]} (13. h3 $11 Bh5 14. g4 fxg4 15. hxg4 Nxd2 16. Nxd2 (16. gxh5 Nxf3+ 17. Bxf3 Nc6 $17)) 13... Nc6 $17 {[%emt 0:07:29] And now ...f4 would win.} 14. cxd5 {[%emt 0:00:32]} exd5 {[%emt 0:00:59]} ({But not} 14... Qxd5 $6 15. Ne3 Bxf3 16. Bxf3 $11) 15. Ne3 {[%emt 0:00:13]} Bxf3 {[%emt 0:02:53]} 16. Bxf3 {[%emt 0:01:08]} Qa5 {[%emt 0:02:14]} 17. a3 {[%emt 0:03:37]} Rad8 {[%emt 0:00:07]} 18. Qd3 {[%emt 0:00:46]} Kh8 {[%emt 0:07:22]} 19. Rad1 {[%emt 0:03:45]} a6 {[%emt 0:04:05]} 20. Bg2 {[%emt 0:03:32]} Rd7 {[%emt 0:03:36]} 21. b4 {[%emt 0:00:29]} Qb6 {[%emt 0:01:00]} 22. Re2 {[%emt 0:01:19]} Qd8 {[%emt 0:04:42]} 23. Nc2 {[%emt 0:00:54][%cal Be3c2,Bc2a1,Ba1b3][%mdl 32]} Re8 {[%emt 0:02:03]} 24. Rde1 {[%emt 0:01:06]} Rde7 {[%emt 0:00:32]} 25. Na1 {[%emt 0:03:14]} a5 {[%emt 0:02:26]} 26. b5 {[%emt 0:00:50]} Nb8 {[%emt 0:00:27]} 27. a4 {[%emt 0:01:03]} Nd7 {[%emt 0:01:02]} 28. Nb3 {[%emt 0:00:53]} b6 {[%emt 0:03:28]} ({Black should try} 28... Nb6 $11) 29. Ba3 {[%emt 0:03:15][%cal Bb2a3,Ba3d6,Bd6c7,Bc7f4][%mdl 32]} Re6 {[%emt 0:00:02]} 30. f3 {[%emt 0:01:42]} Ng5 {[%emt 0:00:05]} 31. Bd6 {[%emt 0:03:00]} Rxe2 {[%emt 0:00:25]} 32. Rxe2 {[%emt 0:00:02][%cal Od6c7]} Nf7 {[%emt 0:02:09]} (32... Ne6 $11) 33. Bc7 $1 $16 {[%emt 0:00:48] White is more active.} Qc8 {[%emt 0:00:02]} (33... Qa8 $16) 34. Rxe8+ $2 {[%emt 0:01:41]} (34. Rc2 $1 $18) 34... Qxe8 $11 {[%emt 0:00:04]} 35. Kf2 {[%emt 0:00:41]} Qc8 {[%emt 0:02:12]} 36. Qc2 {[%emt 0:00:33]} (36. Bf4 $11 {and White has nothing to worry.}) 36... Nf8 $4 {[%emt 0:00:56][%mdl 8192] [#]} (36... Nd8 $1 $19 {[%cal Rd8e6] avoids the disaster. ...Ne6 is the strong threat.} 37. Na1 Ne6) 37. Qc6 {[%emt 0:00:11]} (37. Qc1 $1 $18) 37... Nd7 {[%emt 0:00:18] [#]} (37... Nd8 $1 $14 38. Bxd8 (38. Qxb6 Nfe6 $11) 38... Qxd8) 38. Bf4 $1 $36 {[%emt 0:00:48][%mdl 2048] White is on the roll.} ({Not} 38. Qxd5 Qxc7 39. Qxf7 Qc2+ 40. Kg1 Bxd4+ 41. Nxd4 Qd1+ 42. Bf1 Qxd4+ 43. Kg2 Qd2+ 44. Kh3 Qh6+ 45. Kg2 Qd2+ 46. Kh3 Qh6+ 47. Kg2 Qd2+ $11) 38... Qe8 {[%emt 0:00:12]} 39. Qxd5 {[%emt 0:00:20]} Qe7 {[%emt 0:00:02]} (39... Nf6 $142 40. Qc6 Qd8) 40. Bf1 {[%emt 0:00:40] Strongly threatening Bc4. This bishop pair is nice.} Bh6 {[%emt 0:00:43]} 41. Bxh6 {[%emt 0:00:00]} Nxh6 {[%emt 0:00:00]} 42. Bc4 {[%emt 0:00:00]} Kg7 {[%emt 0:00:00]} 43. Qe6 {[%emt 0:00:00]} Kf8 {[%emt 0:00:00]} (43... Qxe6 $142 44. Bxe6 Nf8) 44. Qxe7+ {[%emt 0:01:51]} (44. Qc6 $18) 44... Kxe7 {[%emt 0:00:00][%mdl 4096] Endgame KBN-KNN} 45. Ke3 {[%emt 0:00:16]} g5 {[%emt 0:00:00]} (45... Nf7 $142 46. Nd2 Nd6) 46. Nd2 {[%emt 0:02:14]} Nf6 {[%emt 0:00:00]} 47. Kd3 {[%emt 0:02:36]} Nf7 $2 {[%emt 0:00:00]} (47... Kd7 48. Bb3 Kc7) 48. Bxf7 {[%emt 0:05:05] White is clearly winning.} Kxf7 {[%emt 0:00:00]} 49. Nc4 {[%emt 0:00:45]} Nd5 {[%emt 0:00:00]} 50. Ne3 {[%emt 0:01:00]} Ne7 {[%emt 0:00:00]} 51. d5 {[%emt 0:01:45] Weighted Error Value: White=0.25 (precise) /Black=0.47} 1-0